[Event "Queens Festival Final Team 2022"]
[Site "Tornelo"]
[Date "2022.06.26"]
[Round "7.6"]
[White "Bakhshizada, Asnad"]
[Black "Banda Tapiwa"]
[Result "1-0"]
[ECO "D31"]
[WhiteElo "1052"]
[BlackElo "1213"]
[Annotator "NA RC"]
[PlyCount "91"]
[EventDate "2022.06.24"]
[EventType "team-tourn"]
[EventCountry "NET"]
[SourceTitle "playchess.com"]
[Source "ChessBase"]
[SourceQuality "1"]
[WhiteTeam "Azerbaijan"]
[BlackTeam "MAW"]
[WhiteTeamCountry "AZE"]
[TimeControl "180+2"]

1. d4 {[%emt 0:00:02]} d5 {[%emt 0:00:04]} 2. c4 {[%emt 0:00:03]} c6 {[%emt 0:00:02]} 3. Nc3 {[%emt 0:00:03]} e6 {[%emt 0:00:02]} 4. Nf3 {[%emt 0:00:01]} Bb4 {[%emt 0:00:03]} 5. Bd2 {[%emt 0:00:02]} Bxc3 {[%emt 0:00:04]} 6. Bxc3 {[%emt 0:00:02]} Nf6 {[%emt 0:00:02]} 7. e3 {[%emt 0:00:02]} O-O {[%emt 0:00:05]} 8. Bd3 {[%emt 0:00:03]} g6 {[%emt 0:00:08]} 9. O-O {[%emt 0:00:03]} a6 {[%emt 0:00:05]} 10. a4 {[%emt 0:00:03]} Nbd7 {[%emt 0:00:03]} 11. h3 {[%emt 0:00:08]} b6 {[%emt 0:00:04]} 12. Ne5 {[%emt 0:00:06]} Nxe5 {[%emt 0:00:03]} 13. dxe5 {[%emt 0:00:01]} Nd7 {[%emt 0:00:04]} 14. f4 {[%emt 0:00:02]} Nc5 {[%emt 0:00:05]} 15. Be2 {[%emt 0:00:05]} Bb7 {[%emt 0:00:06]} 16. Bb4 {[%emt 0:00:05]} Re8 {[%emt 0:00:04]} 17. Bxc5 {[%emt 0:00:04]} bxc5 {[%emt 0:00:02]} 18. Bf3 {[%emt 0:00:07]} d4 {[%emt 0:00:05]} 19. exd4 {[%emt 0:00:03]} Qxd4+ {[%emt 0:00:02]} 20. Qxd4 {[%emt 0:00:03]} cxd4 {[%emt 0:00:01]} 21. c5 {[%emt 0:00:01]} Rad8 {[%emt 0:00:06]} 22. Rad1 {[%emt 0:00:02]} d3 {[%emt 0:00:02]} 23. Rd2 {[%emt 0:00:02]} Rd4 {[%emt 0:00:03]} 24. Rfd1 {[%emt 0:00:05]} Red8 {[%emt 0:00:04]} 25. a5 {[%emt 0:00:09]} Kg7 {[%emt 0:00:07]} 26. g3 {[%emt 0:00:03]} f6 {[%emt 0:00:02]} 27. exf6+ {[%emt 0:00:03]} Kxf6 {[%emt 0:00:02]} 28. Kf2 {[%emt 0:00:02]} h6 {[%emt 0:00:03]} 29. Ke3 {[%emt 0:00:03]} g5 {[%emt 0:00:06]} 30. fxg5+ {[%emt 0:00:05]} hxg5 {[%emt 0:00:02]} 31. Rxd3 {[%emt 0:00:04]} Rxd3+ {[%emt 0:00:04]} 32. Rxd3 {[%emt 0:00:02]} Rxd3+ {[%emt 0:00:02]} 33. Kxd3 {[%emt 0:00:02]} Ke5 {[%emt 0:00:04]} 34. b3 {[%emt 0:00:08]} Ba8 {[%emt 0:00:04]} 35. b4 {[%emt 0:00:03]} Bb7 {[%emt 0:00:04]} 36. h4 {[%emt 0:00:06]} gxh4 {[%emt 0:00:02]} 37. gxh4 {[%emt 0:00:01]} Kf4 {[%emt 0:00:02]} 38. Bd1 {[%emt 0:00:09]} e5 {[%emt 0:00:03]} 39. h5 {[%emt 0:00:02]} Kg5 {[%emt 0:00:02]} 40. Ke4 {[%emt 0:00:04]} Kf6 {[%emt 0:00:05]} 41. h6 {[%emt 0:00:02]} Kg6 {[%emt 0:00:03]} 42. Kxe5 {[%emt 0:00:05]} Kxh6 {[%emt 0:00:02]} 43. Kd6 {[%emt 0:00:02]} Bc8 {[%emt 0:00:07]} 44. Kxc6 {[%emt 0:00:04]} Bf5 {[%emt 0:00:03]} 45. Kb6 {[%emt 0:00:03]} Bd3 {[%emt 0:00:02]} 46. c6 {[%emt 0:00:01]} 1-0

[Event "Queens Festival Final Team 2022"]
[Site "Tornelo"]
[Date "2022.06.26"]
[Round "8.1"]
[White "Mammadova, Aysel"]
[Black "Grigoryan, Meri"]
[Result "1-0"]
[ECO "C54"]
[WhiteElo "1893"]
[BlackElo "1993"]
[Annotator "NA RC"]
[PlyCount "107"]
[EventDate "2022.06.24"]
[EventType "team-tourn"]
[EventCountry "NET"]
[SourceTitle "playchess.com"]
[Source "ChessBase"]
[SourceQuality "1"]
[WhiteTeam "Azerbaijan"]
[BlackTeam "England"]
[WhiteTeamCountry "AZE"]
[BlackTeamCountry "ENG"]
[TimeControl "180+2"]

1. e4 {[%emt 0:00:02]} e5 {[%emt 0:00:07]} 2. Nf3 {[%emt 0:00:03]} Nc6 {[%emt 0:00:02]} 3. Bc4 {[%emt 0:00:02]} Bc5 {[%emt 0:00:02]} 4. c3 {[%emt 0:00:03]} Nf6 {[%emt 0:00:02]} 5. d4 {[%emt 0:00:02]} exd4 {[%emt 0:00:02]} 6. e5 {[%emt 0:00:01]} Ng4 {[%emt 0:00:38]} 7. Bxf7+ {[%emt 0:00:14]} Kf8 {[%emt 0:00:11]} 8. cxd4 {[%emt 0:00:04]} Nxd4 {[%emt 0:00:22]} 9. Nxd4 {[%emt 0:00:07]} Nxf2 {[%emt 0:00:04]} 10. Ne6+ {[%emt 0:00:17]} Kxf7 {[%emt 0:00:54]} 11. Nxd8+ {[%emt 0:00:04]} Rxd8 {[%emt 0:00:03]} 12. O-O {[%emt 0:00:06]} d5 {[%emt 0:00:07]} 13. Qf3+ {[%emt 0:00:09]} Kg8 {[%emt 0:00:03]} 14. Rxf2 {[%emt 0:00:10]} Rf8 {[%emt 0:00:10]} 15. Qxd5+ {[%emt 0:00:02]} Be6 {[%emt 0:00:05]} 16. Qxe6+ {[%emt 0:00:04]} Kh8 {[%emt 0:00:01]} 17. Qc4 {[%emt 0:00:48]} Bxf2+ {[%emt 0:00:04]} 18. Kh1 {[%emt 0:00:02]} Rae8 {[%emt 0:00:15]} 19. Nc3 {[%emt 0:00:09]} Rxe5 {[%emt 0:00:08]} 20. Bf4 {[%emt 0:00:03]} Rc5 {[%emt 0:00:04]} 21. Qe2 {[%emt 0:00:05]} Bd4 {[%emt 0:00:05]} 22. Be3 {[%emt 0:00:05]} Bxe3 {[%emt 0:00:05]} 23. Qxe3 {[%emt 0:00:03]} Rcf5 {[%emt 0:00:00]} 24. h3 {[%emt 0:00:05]} h6 {[%emt 0:00:02]} 25. Ne4 {[%emt 0:00:03]} Re5 {[%emt 0:00:02]} 26. Qd4 {[%emt 0:00:03]} Rfe8 {[%emt 0:00:02]} 27. Ng3 {[%emt 0:00:02]} Re3 {[%emt 0:00:03]} 28. Nf5 {[%emt 0:00:03]} R3e5 {[%emt 0:00:01]} 29. Kh2 {[%emt 0:00:04]} c5 {[%emt 0:00:02]} 30. Qf4 {[%emt 0:00:02]} Re4 {[%emt 0:00:02]} 31. Qg3 {[%emt 0:00:04]} g5 {[%emt 0:00:04]} 32. Nd6 {[%emt 0:00:03]} Re3 {[%emt 0:00:03]} 33. Nxe8 {[%emt 0:00:02]} Rxg3 {[%emt 0:00:01]} 34. Kxg3 {[%emt 0:00:02]} Kg8 {[%emt 0:00:00]} 35. Nd6 {[%emt 0:00:02]} Kg7 {[%emt 0:00:02]} 36. Nxb7 {[%emt 0:00:02]} Kf6 {[%emt 0:00:00]} 37. Nxc5 {[%emt 0:00:03]} Ke5 {[%emt 0:00:00]} 38. b4 {[%emt 0:00:02]} Kd5 {[%emt 0:00:01]} 39. Rd1+ {[%emt 0:00:02]} Kc4 {[%emt 0:00:00]} 40. a3 {[%emt 0:00:03]} a5 {[%emt 0:00:03]} 41. Rd6 {[%emt 0:00:02]} axb4 {[%emt 0:00:02]} 42. axb4 {[%emt 0:00:02]} Kxb4 {[%emt 0:00:00]} 43. Rxh6 {[%emt 0:00:03]} Kxc5 {[%emt 0:00:01]} 44. h4 {[%emt 0:00:02]} Kd5 {[%emt 0:00:00]} 45. hxg5 {[%emt 0:00:03]} Ke5 {[%emt 0:00:00]} 46. g6 {[%emt 0:00:04]} Kf5 {[%emt 0:00:00]} 47. g7 {[%emt 0:00:03]} Ke4 {[%emt 0:00:00]} 48. g8=Q {[%emt 0:00:05]} Ke3 {[%emt 0:00:00]} 49. Re6+ {[%emt 0:00:03]} Kd4 {[%emt 0:00:02]} 50. Qd8+ {[%emt 0:00:02]} Kc5 {[%emt 0:00:00]} 51. Qd7 {[%emt 0:00:04]} Kb4 {[%emt 0:00:02]} 52. Rc6 {[%emt 0:00:02]} Kb5 {[%emt 0:00:00]} 53. Qb7+ {[%emt 0:00:03]} Ka5 {[%emt 0:00:00]} 54. Ra6# {[%emt 0:00:03]} 1-0

[Event "Queens Festival Final Team 2022"]
[Site "Tornelo"]
[Date "2022.06.26"]
[Round "8.1"]
[White "Subramanian, Anusha"]
[Black "Ismayil, Malak"]
[Result "0-1"]
[ECO "A01"]
[WhiteElo "1671"]
[BlackElo "2001"]
[Annotator "NA RC"]
[PlyCount "152"]
[EventDate "2022.06.24"]
[EventType "team-tourn"]
[EventCountry "NET"]
[SourceTitle "playchess.com"]
[Source "ChessBase"]
[SourceQuality "1"]
[WhiteTeam "England"]
[BlackTeam "Azerbaijan"]
[WhiteTeamCountry "ENG"]
[BlackTeamCountry "AZE"]
[TimeControl "180+2"]

1. b3 {[%emt 0:00:02]} e5 {[%emt 0:00:05]} 2. Bb2 {[%emt 0:00:02]} Nc6 {[%emt 0:00:01]} 3. Nf3 {[%emt 0:00:04]} d6 {[%emt 0:00:01]} 4. e3 {[%emt 0:00:02]} Be7 {[%emt 0:00:07]} 5. Be2 {[%emt 0:00:02]} Nf6 {[%emt 0:00:02]} 6. d4 {[%emt 0:00:02]} exd4 {[%emt 0:00:02]} 7. Nxd4 {[%emt 0:00:01]} Bd7 {[%emt 0:00:03]} 8. c4 {[%emt 0:00:02]} O-O {[%emt 0:00:04]} 9. O-O {[%emt 0:00:04]} Ne8 {[%emt 0:00:03]} 10. Bf3 {[%emt 0:00:17]} Bf6 {[%emt 0:00:04]} 11. Na3 {[%emt 0:00:18]} Qe7 {[%emt 0:00:18]} 12. Nac2 {[%emt 0:00:16]} Nd8 {[%emt 0:00:04]} 13. Rb1 {[%emt 0:00:25]} g6 {[%emt 0:00:09]} 14. Ne2 {[%emt 0:00:12]} Bxb2 {[%emt 0:00:05]} 15. Rxb2 {[%emt 0:00:00]} Ng7 {[%emt 0:00:05]} 16. Ncd4 {[%emt 0:00:11]} Qf6 {[%emt 0:00:11]} 17. Rb1 {[%emt 0:00:08]} a6 {[%emt 0:00:06]} 18. Nc3 {[%emt 0:00:06]} Be6 {[%emt 0:00:05]} 19. Ne4 {[%emt 0:00:09]} Qe7 {[%emt 0:00:02]} 20. Ng3 {[%emt 0:00:16]} Rb8 {[%emt 0:00:04]} 21. Qd2 {[%emt 0:00:03]} h5 {[%emt 0:00:08]} 22. Nge2 {[%emt 0:00:05]} Bd7 {[%emt 0:00:10]} 23. Rfc1 {[%emt 0:00:06]} Nde6 {[%emt 0:00:03]} 24. Nxe6 {[%emt 0:00:04]} fxe6 {[%emt 0:00:02]} 25. Qc2 {[%emt 0:00:14]} Qf6 {[%emt 0:00:13]} 26. Nf4 {[%emt 0:00:08]} Nf5 {[%emt 0:00:06]} 27. c5 {[%emt 0:00:09]} d5 {[%emt 0:00:02]} 28. Qc3 {[%emt 0:00:13]} Qxc3 {[%emt 0:00:06]} 29. Rxc3 {[%emt 0:00:02]} Kg7 {[%emt 0:00:01]} 30. Ne2 {[%emt 0:00:07]} c6 {[%emt 0:00:02]} 31. Nd4 {[%emt 0:00:03]} e5 {[%emt 0:00:02]} 32. Nxf5+ {[%emt 0:00:02]} Bxf5 {[%emt 0:00:02]} 33. Rd1 {[%emt 0:00:02]} e4 {[%emt 0:00:03]} 34. Be2 {[%emt 0:00:02]} Rf7 {[%emt 0:00:01]} 35. Rd4 {[%emt 0:00:02]} Rbf8 {[%emt 0:00:01]} 36. Rc2 {[%emt 0:00:01]} Be6 {[%emt 0:00:03]} 37. Bf1 {[%emt 0:00:03]} Bg4 {[%emt 0:00:04]} 38. h3 {[%emt 0:00:02]} Be6 {[%emt 0:00:02]} 39. b4 {[%emt 0:00:02]} Bd7 {[%emt 0:00:03]} 40. a4 {[%emt 0:00:02]} g5 {[%emt 0:00:06]} 41. Rdd2 {[%emt 0:00:02]} g4 {[%emt 0:00:02]} 42. hxg4 {[%emt 0:00:02]} hxg4 {[%emt 0:00:01]} 43. g3 {[%emt 0:00:03]} Kg6 {[%emt 0:00:03]} 44. Rb2 {[%emt 0:00:02]} Kf6 {[%emt 0:00:13]} 45. b5 {[%emt 0:00:03]} axb5 {[%emt 0:00:02]} 46. axb5 {[%emt 0:00:01]} Ke5 {[%emt 0:00:01]} 47. bxc6 {[%emt 0:00:03]} bxc6 {[%emt 0:00:01]} 48. Bg2 {[%emt 0:00:04]} Bc8 {[%emt 0:00:04]} 49. Rb6 {[%emt 0:00:02]} Rc7 {[%emt 0:00:05]} 50. Rdb2 {[%emt 0:00:02]} Be6 {[%emt 0:00:07]} 51. Rb7 {[%emt 0:00:03]} Rfc8 {[%emt 0:00:04]} 52. Rxc7 {[%emt 0:00:02]} Rxc7 {[%emt 0:00:01]} 53. Rb6 {[%emt 0:00:02]} Bf5 {[%emt 0:00:09]} 54. Rb8 {[%emt 0:00:03]} Ra7 {[%emt 0:00:08]} 55. Re8+ {[%emt 0:00:03]} Kf6 {[%emt 0:00:02]} 56. Rf8+ {[%emt 0:00:02]} Ke6 {[%emt 0:00:11]} 57. Re8+ {[%emt 0:00:02]} Kf7 {[%emt 0:00:03]} 58. Rb8 {[%emt 0:00:02]} Bd7 {[%emt 0:00:09]} 59. Rb6 {[%emt 0:00:02]} Ra5 {[%emt 0:00:02]} 60. Rb7 {[%emt 0:00:01]} Ke6 {[%emt 0:00:01]} 61. Bf1 {[%emt 0:00:03]} Rxc5 {[%emt 0:00:02]} 62. Kg2 {[%emt 0:00:01]} Kd6 {[%emt 0:00:02]} 63. Be2 {[%emt 0:00:01]} Rc2 {[%emt 0:00:03]} 64. Bd1 {[%emt 0:00:01]} Rd2 {[%emt 0:00:02]} 65. Ba4 {[%emt 0:00:04]} Ra2 {[%emt 0:00:02]} 66. Bb3 {[%emt 0:00:01]} Rb2 {[%emt 0:00:02]} 67. Rb8 {[%emt 0:00:02]} Kc7 {[%emt 0:00:03]} 68. Rb4 {[%emt 0:00:01]} c5 {[%emt 0:00:01]} 69. Ra4 {[%emt 0:00:02]} Bxa4 {[%emt 0:00:04]} 70. Bxa4 {[%emt 0:00:01]} c4 {[%emt 0:00:01]} 71. Be8 {[%emt 0:00:02]} c3 {[%emt 0:00:02]} 72. Bf7 {[%emt 0:00:02]} c2 {[%emt 0:00:01]} 73. Bxd5 {[%emt 0:00:01]} c1=Q {[%emt 0:00:03]} 74. Bxe4 {[%emt 0:00:01]} Qe1 {[%emt 0:00:02]} 75. Bf5 {[%emt 0:00:03]} Qxf2+ {[%emt 0:00:02]} 76. Kh1 {[%emt 0:00:02]} Qh2# {[%emt 0:00:02]} 0-1

[Event "Queens Festival Final Team 2022"]
[Site "Tornelo"]
[Date "2022.06.26"]
[Round "8.1"]
[White "Posadas, Rayelynn"]
[Black "Khalilova, Khadija"]
[Result "0-1"]
[ECO "E06"]
[WhiteElo "1648"]
[BlackElo "1777"]
[Annotator "NA RC"]
[PlyCount "78"]
[EventDate "2022.06.24"]
[EventType "team-tourn"]
[EventCountry "NET"]
[SourceTitle "playchess.com"]
[Source "ChessBase"]
[SourceQuality "1"]
[WhiteTeam "England"]
[BlackTeam "Azerbaijan"]
[WhiteTeamCountry "ENG"]
[BlackTeamCountry "AZE"]
[TimeControl "180+2"]

1. Nf3 {[%emt 0:00:02]} d5 {[%emt 0:00:05]} 2. d4 {[%emt 0:00:02]} e6 {[%emt 0:00:04]} 3. g3 {[%emt 0:00:01]} Nf6 {[%emt 0:00:02]} 4. Bg2 {[%emt 0:00:01]} c5 {[%emt 0:00:02]} 5. O-O {[%emt 0:00:02]} Nc6 {[%emt 0:00:02]} 6. c4 {[%emt 0:00:01]} Be7 {[%emt 0:00:03]} 7. Nc3 {[%emt 0:00:02]} dxc4 {[%emt 0:00:03]} 8. Qa4 {[%emt 0:01:06]} O-O {[%emt 0:00:18]} 9. Qxc4 {[%emt 0:00:03]} cxd4 {[%emt 0:00:05]} 10. Rd1 {[%emt 0:00:05]} e5 {[%emt 0:00:06]} 11. e3 {[%emt 0:00:42]} Bg4 {[%emt 0:00:04]} 12. h3 {[%emt 0:00:04]} Be6 {[%emt 0:00:15]} 13. Qe2 {[%emt 0:00:07]} Qb6 {[%emt 0:00:17]} 14. exd4 {[%emt 0:00:09]} exd4 {[%emt 0:00:07]} 15. Na4 {[%emt 0:00:16]} Qa5 {[%emt 0:00:04]} 16. b3 {[%emt 0:00:04]} Rfe8 {[%emt 0:00:19]} 17. Bb2 {[%emt 0:00:07]} b5 {[%emt 0:00:09]} 18. Rac1 {[%emt 0:00:20]} bxa4 {[%emt 0:00:13]} 19. Rxc6 {[%emt 0:00:02]} axb3 {[%emt 0:00:03]} 20. axb3 {[%emt 0:00:01]} Bxb3 {[%emt 0:00:06]} 21. Rdc1 {[%emt 0:00:12]} Bb4 {[%emt 0:00:14]} 22. Qd3 {[%emt 0:00:01]} Ba4 {[%emt 0:00:12]} 23. Qxd4 {[%emt 0:00:06]} Bxc6 {[%emt 0:00:03]} 24. Rxc6 {[%emt 0:00:02]} Be7 {[%emt 0:00:20]} 25. Bc3 {[%emt 0:00:04]} Qd5 {[%emt 0:00:05]} 26. Qa4 {[%emt 0:00:04]} Rac8 {[%emt 0:00:08]} 27. Ne5 {[%emt 0:00:01]} Qd8 {[%emt 0:00:08]} 28. Rxc8 {[%emt 0:00:04]} Qxc8 {[%emt 0:00:03]} 29. Bd2 {[%emt 0:00:04]} Bc5 {[%emt 0:00:05]} 30. Qb3 {[%emt 0:00:03]} Rxe5 {[%emt 0:00:04]} 31. Bf4 {[%emt 0:00:03]} Re8 {[%emt 0:00:01]} 32. Kh2 {[%emt 0:00:01]} Bxf2 {[%emt 0:00:03]} 33. Bg5 {[%emt 0:00:03]} Bd4 {[%emt 0:00:02]} 34. Bxf6 {[%emt 0:00:01]} Bxf6 {[%emt 0:00:01]} 35. Bb7 {[%emt 0:00:00]} Qc7 {[%emt 0:00:02]} 36. h4 {[%emt 0:00:04]} g6 {[%emt 0:00:02]} 37. Bg2 {[%emt 0:00:03]} Kg7 {[%emt 0:00:01]} 38. Kh3 {[%emt 0:00:01]} Bd4 {[%emt 0:00:03]} 39. Bd5 {[%emt 0:00:02]} Re3 {[%emt 0:00:02]} 0-1

[Event "Queens Festival Final Team 2022"]
[Site "Tornelo"]
[Date "2022.06.26"]
[Round "8.1"]
[White "Bakhshizada, Asnad"]
[Black "Catabay, Mae Katelyn Rose"]
[Result "1-0"]
[ECO "D85"]
[WhiteElo "1052"]
[BlackElo "1321"]
[Annotator "NA RC"]
[PlyCount "101"]
[EventDate "2022.06.24"]
[EventType "team-tourn"]
[EventCountry "NET"]
[SourceTitle "playchess.com"]
[Source "ChessBase"]
[SourceQuality "1"]
[WhiteTeam "Azerbaijan"]
[BlackTeam "England"]
[WhiteTeamCountry "AZE"]
[BlackTeamCountry "ENG"]
[TimeControl "180+2"]

1. d4 {[%emt 0:00:02]} Nf6 {[%emt 0:00:06]} 2. c4 {[%emt 0:00:03]} g6 {[%emt 0:00:04]} 3. Nc3 {[%emt 0:00:02]} d5 {[%emt 0:00:01]} 4. cxd5 {[%emt 0:00:02]} Nxd5 {[%emt 0:00:02]} 5. e4 {[%emt 0:00:02]} Nxc3 {[%emt 0:00:03]} 6. bxc3 {[%emt 0:00:01]} Bg7 {[%emt 0:00:01]} 7. Be3 {[%emt 0:00:02]} e6 {[%emt 0:00:04]} 8. Nf3 {[%emt 0:00:02]} O-O {[%emt 0:00:04]} 9. Rc1 {[%emt 0:00:04]} Nc6 {[%emt 0:00:02]} 10. Bd3 {[%emt 0:00:05]} b6 {[%emt 0:00:11]} 11. O-O {[%emt 0:00:03]} Bb7 {[%emt 0:00:02]} 12. e5 {[%emt 0:00:03]} Ne7 {[%emt 0:00:04]} 13. Bg5 {[%emt 0:00:03]} Qd7 {[%emt 0:00:03]} 14. Qe2 {[%emt 0:00:05]} h6 {[%emt 0:00:08]} 15. Be3 {[%emt 0:00:10]} Nf5 {[%emt 0:00:06]} 16. Bxf5 {[%emt 0:00:06]} exf5 {[%emt 0:00:02]} 17. h3 {[%emt 0:00:09]} g5 {[%emt 0:00:08]} 18. Nh2 {[%emt 0:00:06]} f4 {[%emt 0:00:02]} 19. Bd2 {[%emt 0:00:03]} Rae8 {[%emt 0:00:11]} 20. f3 {[%emt 0:00:07]} f6 {[%emt 0:00:03]} 21. Qc4+ {[%emt 0:00:03]} Bd5 {[%emt 0:00:04]} 22. Qd3 {[%emt 0:00:06]} fxe5 {[%emt 0:00:06]} 23. dxe5 {[%emt 0:00:02]} Rxe5 {[%emt 0:00:03]} 24. Ng4 {[%emt 0:00:03]} Re6 {[%emt 0:00:24]} 25. c4 {[%emt 0:00:08]} Bc6 {[%emt 0:00:04]} 26. Qxd7 {[%emt 0:00:02]} Bxd7 {[%emt 0:00:03]} 27. Rfd1 {[%emt 0:00:08]} h5 {[%emt 0:00:02]} 28. Nf2 {[%emt 0:00:03]} Bc6 {[%emt 0:00:09]} 29. Bb4 {[%emt 0:00:06]} Rfe8 {[%emt 0:00:07]} 30. Rd3 {[%emt 0:00:16]} a5 {[%emt 0:00:04]} 31. Bd2 {[%emt 0:00:05]} Re2 {[%emt 0:00:22]} 32. Nd1 {[%emt 0:00:08]} g4 {[%emt 0:00:14]} 33. Nc3 {[%emt 0:00:11]} Bxc3 {[%emt 0:00:03]} 34. Bxc3 {[%emt 0:00:03]} gxf3 {[%emt 0:00:08]} 35. gxf3 {[%emt 0:00:02]} Rxa2 {[%emt 0:00:12]} 36. Bd2 {[%emt 0:00:29]} Kf7 {[%emt 0:00:33]} 37. Bxf4 {[%emt 0:00:04]} Rg8+ {[%emt 0:00:02]} 38. Kh1 {[%emt 0:00:28]} Rf2 {[%emt 0:00:02]} 39. Rcc3 {[%emt 0:00:16]} Rf1+ {[%emt 0:00:04]} 40. Kh2 {[%emt 0:00:02]} Rgg1 {[%emt 0:00:03]} 41. Be3 {[%emt 0:00:07]} h4 {[%emt 0:00:02]} 42. Bxg1 {[%emt 0:00:03]} Re1 {[%emt 0:00:05]} 43. Bf2 {[%emt 0:00:02]} Re2 {[%emt 0:00:02]} 44. Kg1 {[%emt 0:00:03]} a4 {[%emt 0:00:03]} 45. Re3 {[%emt 0:00:01]} Rxe3 {[%emt 0:00:02]} 46. Rxe3 {[%emt 0:00:02]} Kf6 {[%emt 0:00:01]} 47. Ra3 {[%emt 0:00:02]} Kf5 {[%emt 0:00:02]} 48. Bxh4 {[%emt 0:00:01]} Kf4 {[%emt 0:00:02]} 49. Bd8 {[%emt 0:00:02]} Bxf3 {[%emt 0:00:01]} 50. Bxc7+ {[%emt 0:00:02]} Ke4 {[%emt 0:00:02]} 51. Bxb6 {[%emt 0:00:01]} 1-0

[Event "Queens Festival Final Team 2022"]
[Site "Tornelo"]
[Date "2022.06.26"]
[Round "8.2"]
[White "Maksimovic, Suzana"]
[Black "Shriyan santosh Priyasha"]
[Result "1-0"]
[ECO "B09"]
[WhiteElo "2145"]
[BlackElo "1597"]
[Annotator "RC"]
[PlyCount "47"]
[EventDate "2022.06.24"]
[EventType "team-tourn"]
[EventCountry "NET"]
[SourceTitle "playchess.com"]
[Source "ChessBase"]
[SourceQuality "1"]
[WhiteTeam "Serbia"]
[BlackTeam "MAW"]
[WhiteTeamCountry "SRB"]
[TimeControl "180+2"]

1. d4 {[%emt 0:00:02]} g6 {[%emt 0:00:04]} 2. e4 {[%emt 0:00:03]} Bg7 {[%emt 0:00:01]} 3. Nc3 {[%emt 0:00:02]} d6 {[%emt 0:00:01]} 4. f4 {[%emt 0:00:01]} Nf6 {[%emt 0:00:02]} 5. Nf3 {[%emt 0:00:02]} e6 {[%emt 0:00:01]} 6. e5 {[%emt 0:00:09]} dxe5 {[%emt 0:00:10]} 7. fxe5 {[%emt 0:00:02]} Nd5 {[%emt 0:00:04]} 8. Ne4 {[%emt 0:00:02]} b6 {[%emt 0:00:19]} 9. c4 {[%emt 0:00:16]} Ne7 {[%emt 0:00:03]} 10. Bg5 {[%emt 0:00:07]} h6 {[%emt 0:00:03]} 11. Nf6+ {[%emt 0:00:13]} Kf8 {[%emt 0:00:05]} 12. Be3 {[%emt 0:00:24]} Nd7 {[%emt 0:00:09]} 13. Nxd7+ {[%emt 0:00:16]} Bxd7 {[%emt 0:00:00]} 14. Be2 {[%emt 0:00:21]} Kg8 {[%emt 0:00:05]} 15. O-O {[%emt 0:00:03]} Kh7 {[%emt 0:00:02]} 16. g4 {[%emt 0:00:09]} Rf8 {[%emt 0:00:07]} 17. Qe1 {[%emt 0:00:08]} Bc6 {[%emt 0:00:07]} 18. Qg3 {[%emt 0:00:07]} Bb7 {[%emt 0:00:16]} 19. Rad1 {[%emt 0:00:03]} c6 {[%emt 0:00:09]} 20. Qh3 {[%emt 0:00:02]} Nc8 {[%emt 0:00:10]} 21. Ng5+ {[%emt 0:00:11]} Kg8 {[%emt 0:00:04]} 22. Ne4 {[%emt 0:00:02]} Kh7 {[%emt 0:00:07]} 23. Nf6+ {[%emt 0:00:02]} Bxf6 {[%emt 0:00:36]} 24. Qxh6+ {[%emt 0:00:04]} 1-0

[Event "Queens Festival Final Team 2022"]
[Site "Tornelo"]
[Date "2022.06.26"]
[Round "8.2"]
[White "Vukosavljevic, Tatjana"]
[Black "Nkhoma, Desiderata"]
[Result "1-0"]
[ECO "E65"]
[WhiteElo "1758"]
[BlackElo "1465"]
[Annotator "NA"]
[PlyCount "59"]
[EventDate "2022.06.24"]
[EventType "team-tourn"]
[EventCountry "NET"]
[SourceTitle "playchess.com"]
[Source "ChessBase"]
[SourceQuality "1"]
[WhiteTeam "Serbia"]
[BlackTeam "MAW"]
[WhiteTeamCountry "SRB"]
[TimeControl "180+2"]

1. Nf3 {[%emt 0:00:02]} d6 {[%emt 0:00:08]} 2. d4 {[%emt 0:00:03]} Nf6 {[%emt 0:00:02]} 3. g3 {[%emt 0:00:01]} g6 {[%emt 0:00:06]} 4. Bg2 {[%emt 0:00:02]} Bg7 {[%emt 0:00:02]} 5. O-O {[%emt 0:00:01]} O-O {[%emt 0:00:02]} 6. c4 {[%emt 0:00:01]} c5 {[%emt 0:00:03]} 7. Nc3 {[%emt 0:00:07]} cxd4 {[%emt 0:00:03]} 8. Nxd4 {[%emt 0:00:02]} Qc7 {[%emt 0:00:06]} 9. b3 {[%emt 0:00:07]} Nc6 {[%emt 0:00:02]} 10. e3 {[%emt 0:00:13]} Nxd4 {[%emt 0:00:06]} 11. exd4 {[%emt 0:00:02]} Rb8 {[%emt 0:00:05]} 12. Bb2 {[%emt 0:00:03]} e6 {[%emt 0:00:03]} 13. Nb5 {[%emt 0:00:08]} b6 {[%emt 0:00:05]} 14. Nxc7 {[%emt 0:00:03]} d5 {[%emt 0:00:12]} 15. cxd5 {[%emt 0:00:02]} exd5 {[%emt 0:00:03]} 16. Nxd5 {[%emt 0:00:02]} Ba6 {[%emt 0:00:10]} 17. Re1 {[%emt 0:00:04]} Rbd8 {[%emt 0:00:09]} 18. Ne7+ {[%emt 0:00:07]} Kh8 {[%emt 0:00:05]} 19. d5 {[%emt 0:00:06]} Rfe8 {[%emt 0:00:20]} 20. d6 {[%emt 0:00:04]} Rxe7 {[%emt 0:00:08]} 21. Rxe7 {[%emt 0:00:05]} Bc8 {[%emt 0:00:10]} 22. Qd2 {[%emt 0:00:13]} Bd7 {[%emt 0:00:09]} 23. Rc1 {[%emt 0:00:05]} Bc8 {[%emt 0:00:05]} 24. Rcc7 {[%emt 0:00:03]} Kg8 {[%emt 0:00:08]} 25. Rxf7 {[%emt 0:00:02]} Be6 {[%emt 0:00:08]} 26. Rxg7+ {[%emt 0:00:04]} Kf8 {[%emt 0:00:21]} 27. Bxf6 {[%emt 0:00:02]} a6 {[%emt 0:00:10]} 28. Rxh7 {[%emt 0:00:02]} b5 {[%emt 0:00:11]} 29. Qh6+ {[%emt 0:00:03]} Ke8 {[%emt 0:00:09]} 30. Rce7# {[%emt 0:00:02]} 1-0

[Event "Queens Festival Final Team 2022"]
[Site "Tornelo"]
[Date "2022.06.26"]
[Round "8.2"]
[White "Banda Tapiwa"]
[Black "Vujovic, Vera"]
[Result "0-1"]
[ECO "B30"]
[WhiteElo "1213"]
[BlackElo "1353"]
[Annotator "NA RC"]
[PlyCount "52"]
[EventDate "2022.06.24"]
[EventType "team-tourn"]
[EventCountry "NET"]
[SourceTitle "playchess.com"]
[Source "ChessBase"]
[SourceQuality "1"]
[WhiteTeam "MAW"]
[BlackTeam "Serbia"]
[BlackTeamCountry "SRB"]
[TimeControl "180+2"]

1. e4 {[%emt 0:00:02]} c5 {[%emt 0:00:05]} 2. Nf3 {[%emt 0:00:03]} d6 {[%emt 0:00:02]} 3. c4 {[%emt 0:00:02]} Nc6 {[%emt 0:00:02]} 4. Nc3 {[%emt 0:00:05]} e5 {[%emt 0:00:02]} 5. Nd5 {[%emt 0:00:05]} Nf6 {[%emt 0:00:02]} 6. Nxf6+ {[%emt 0:00:07]} Qxf6 {[%emt 0:00:02]} 7. d3 {[%emt 0:00:02]} Bg4 {[%emt 0:00:05]} 8. Bg5 {[%emt 0:00:07]} Bxf3 {[%emt 0:00:04]} 9. Bxf6 {[%emt 0:00:03]} Bxd1 {[%emt 0:00:01]} 10. Rxd1 {[%emt 0:00:03]} gxf6 {[%emt 0:00:02]} 11. g3 {[%emt 0:00:05]} a6 {[%emt 0:00:04]} 12. Bh3 {[%emt 0:00:02]} b5 {[%emt 0:00:02]} 13. b3 {[%emt 0:00:03]} Nb4 {[%emt 0:00:02]} 14. Rd2 {[%emt 0:00:05]} bxc4 {[%emt 0:00:03]} 15. a3 {[%emt 0:00:03]} Nxd3+ {[%emt 0:00:02]} 16. Ke2 {[%emt 0:00:04]} Bh6 {[%emt 0:00:14]} 17. bxc4 {[%emt 0:00:03]} Bxd2 {[%emt 0:00:03]} 18. Kxd2 {[%emt 0:00:02]} Nxf2 {[%emt 0:00:01]} 19. Bg2 {[%emt 0:00:03]} Nxh1 {[%emt 0:00:02]} 20. Bxh1 {[%emt 0:00:01]} Rb8 {[%emt 0:00:01]} 21. Kc3 {[%emt 0:00:03]} Rb1 {[%emt 0:00:03]} 22. Bf3 {[%emt 0:00:02]} Rf1 {[%emt 0:00:03]} 23. Be2 {[%emt 0:00:07]} Rf2 {[%emt 0:00:01]} 24. Kd3 {[%emt 0:00:03]} Rxh2 {[%emt 0:00:02]} 25. g4 {[%emt 0:00:02]} Rh3+ {[%emt 0:00:05]} 26. Kc2 {[%emt 0:00:03]} Rxa3 {[%emt 0:00:02]} 0-1